fUST/lending_fUST_20240105
["ID","MTS","AMOUNT","RATE_DAILY","PERIOD"]
[310223294,1704403842828,-500.0,0.0003863,7]
[310223296,1704403842837,-500.0,0.0003863,7]
[310223299,1704403842846,-500.0,0.0003863,7]
[310223300,1704403842855,-500.0,0.0003863,7]
[310223302,1704403842868,-500.0,0.0003863,7]
[310223304,1704403842878,-500.0,0.0003863,7]
[310223306,1704403842888,-500.0,0.0003863,7]
[310223309,1704403842898,-500.0,0.0003863,7]
[310223312,1704403842907,-576.98,0.0003863,7]
[310223315,1704403842916,-500.0,0.0003863,7]
[310223317,1704403842925,-500.0,0.0003863,7]
[310223322,1704403842941,-500.0,0.0003863,7]
[310223323,1704403842951,-1233.61,0.0003863,7]
[310223337,1704403843048,-500.0,0.0003863,7]
[310223339,1704403843057,-517.5,0.0003863,7]
[310223341,1704403843067,-500.0,0.0003863,7]
[310223343,1704403843076,-500.0,0.0003863,7]
[310223345,1704403843086,-500.0,0.0003863,7]
[310223348,1704403843094,-500.0,0.0003863,7]
[310223351,1704403843104,-500.0,0.0003863,7]
[310223354,1704403843114,-500.0,0.0003863,7]
[310223357,1704403843122,-617.08,0.0003863,7]
[310223360,1704403843131,-500.0,0.0003863,7]
[310223362,1704403843140,-500.0,0.0003863,7]
[310223365,1704403843150,-691.0,0.0003863,7]
[310223367,1704403843159,-582.03418296,0.0003863,7]
[310223369,1704403843168,-500.0,0.0003863,7]
[310223371,1704403843179,-500.0,0.0003863,7]
[310223373,1704403843190,-500.0,0.0003863,7]
[310223375,1704403843201,-540.05784982,0.0003863,7]
[310223377,1704403843210,-500.0,0.0003863,7]
[310223379,1704403843219,-500.0,0.0003863,7]
[310223381,1704403843229,-1564.77,0.0003863,2]
[310223383,1704403843240,-500.0,0.0003863,7]
[310223385,1704403843249,-552.88,0.0003863,7]
[310223386,1704403843259,-1532.91,0.0003863,7]
[310223388,1704403843268,-500.0,0.0003863,2]
[310223390,1704403843278,-647.19409678,0.0003863,7]
[310223392,1704403843287,-150.0,0.0003863,7]
[310223394,1704403843297,-500.0,0.0003863,7]
[310223396,1704403843306,-657.4,0.0003863,7]
[310223398,1704403843316,-500.0,0.0003863,7]
[310223400,1704403843325,-500.0,0.0003863,7]
[310223402,1704403843334,-1000.0,0.0003863,2]
[310223404,1704403843344,-492.32192926,0.0003863,2]
[310223406,1704403843353,-500.0,0.0003863,7]
[310223408,1704403843362,-500.0,0.0003863,7]
[310223410,1704403843371,-500.0,0.0003863,7]
[310223412,1704403843380,-500.0,0.0003863,7]
[310223414,1704403843389,-500.0,0.0003863,7]
[310223416,1704403843398,-750.84,0.0003863,7]
[310223418,1704403843407,-520.0,0.0003863,7]
[310223420,1704403843416,-500.0,0.0003863,7]
[310223422,1704403843425,-553.17130818,0.0003863,7]
[310223424,1704403843435,-515.13777559,0.0003863,7]
[310223425,1704403843447,-500.0,0.0003863,7]
[310223427,1704403843456,-720.81,0.0003863,7]
[310223429,1704403843465,-500.0,0.0003863,7]
[310223431,1704403843474,-1081.67,0.0003863,7]
[310223433,1704403843483,-500.0,0.0003863,7]
[310223435,1704403843492,-505.21001314,0.0003863,7]
[310223437,1704403843501,-849.82,0.0003863,7]
[310223439,1704403843510,-1135.37,0.0003863,7]
[310223441,1704403843519,-3814.95,0.0003863,7]
[310223443,1704403843528,-500.0,0.0003863,7]
[310223445,1704403843537,-512.69,0.0003863,7]
[310223447,1704403843547,-500.0,0.0003863,7]
[310223449,1704403843556,-694.37,0.0003863,7]
[310223451,1704403843565,-748.22,0.0003863,7]
[310223453,1704403843575,-257.96394501,0.0003863,7]
[310223455,1704403843585,-500.0,0.0003863,7]
[310223457,1704403843595,-500.0,0.0003863,7]
[310223459,1704403843605,-1373.82,0.0003863,7]
[310223461,1704403843616,-500.0,0.0003863,7]
[310223463,1704403843626,-500.0,0.0003863,7]
[310223465,1704403843636,-500.0,0.0003863,7]
[310223467,1704403843647,-500.0,0.0003863,7]
[310223469,1704403843657,-500.0,0.0003863,7]
[310223471,1704403843667,-1728.79,0.0003863,7]
[310223473,1704403843677,-500.0,0.0003863,7]
[310223475,1704403843687,-500.0,0.0003863,7]
[310223477,1704403843698,-623.76,0.0003863,7]
[310223479,1704403843707,-500.0,0.0003863,7]
[310223481,1704403843716,-500.0,0.0003863,2]
[310223483,1704403843726,-521.44648394,0.0003863,7]
[310223484,1704403843735,-500.0,0.0003863,7]
[310223486,1704403843745,-500.0,0.0003863,7]
[310223487,1704403843754,-500.0,0.0003863,7]
[310223488,1704403843763,-1506.71,0.0003863,7]
[310223489,1704403843772,-500.0,0.0003863,7]
[310223490,1704403843781,-500.0,0.0003863,7]
[310223491,1704403843790,-706.41,0.0003863,7]
[310223492,1704403843799,-1047.73,0.0003863,7]
[310223493,1704403843808,-500.0,0.0003863,7]
[310223494,1704403843817,-500.0,0.0003863,7]
[310223495,1704403843827,-3125.26,0.0003863,7]
[310223496,1704403843836,-520.08886712,0.0003863,7]
[310223497,1704403843845,-500.0,0.0003863,7]
[310223498,1704403843855,-505.21697325,0.0003863,7]
[310223499,1704403843864,-500.0,0.0003863,7]
[310223500,1704403843873,-500.0,0.0003863,7]
[310223501,1704403843882,-500.0,0.0003863,7]
[310223502,1704403843892,-500.0,0.0003863,7]
[310223503,1704403843900,-500.0,0.0003863,7]
[310223504,1704403843912,-606.91234233,0.0003863,7]
[310223505,1704403843921,-500.0,0.0003863,7]
[310223506,1704403843931,-495.31584704,0.0003863,7]
[310223507,1704403843940,-500.0,0.0003863,7]
[310223509,1704403843950,-500.0,0.0003863,7]
[310223511,1704403843959,-500.0,0.0003863,7]
[310223513,1704403843968,-500.0,0.0003863,7]
[310223515,1704403843977,-500.0,0.0003863,7]
[310223517,1704403843986,-500.0,0.0003863,7]
[310223519,1704403843996,-705.34,0.0003863,7]
[310223521,1704403844007,-500.0,0.0003863,7]
[310223523,1704403844017,-744.85,0.0003863,7]
[310223525,1704403844026,-9877.37,0.0003863,7]
[310223527,1704403844035,-500.0,0.0003863,7]
[310223528,1704403844046,-500.0,0.0003863,7]
[310223530,1704403844055,-500.0,0.0003863,7]
[310223532,1704403844064,-500.0,0.0003863,7]
[310223535,1704403844074,-500.0,0.0003863,7]
[310223537,1704403844084,-500.0,0.0003863,7]
[310223539,1704403844094,-15428.1,0.0003863,7]
[310223540,1704403844103,-1089.44,0.0003863,7]
[310223543,1704403844115,-500.0,0.0003863,7]
[310223544,1704403844124,-275.54565894,0.0003863,7]
[310223546,1704403844134,-500.0,0.0003863,7]
[310223548,1704403844145,-1654.23,0.0003863,7]
[310223550,1704403844154,-500.0,0.0003863,7]
[310223552,1704403844164,-629.26352752,0.0003863,7]
[310223554,1704403844175,-970.41,0.0003863,7]
[310223556,1704403844184,-1937.04,0.0003863,7]
[310223559,1704403844195,-752.89,0.0003863,7]
[310223560,1704403844205,-199.91283579,0.0003863,7]
[310223562,1704403844214,-500.0,0.0003863,7]
[310223565,1704403844223,-500.0,0.0003863,7]
[310223566,1704403844233,-2017.23826535,0.0003863,7]
[310223583,1704403844371,-6824.11173465,0.0003863,7]
[310223584,1704403844380,-463.09863253,0.0003863,7]
[310223586,1704403844389,-500.0,0.0003863,7]
[310223588,1704403844398,-2898.21,0.0003863,7]
[310223590,1704403844407,-189.56691927,0.0003863,7]
[310223592,1704403844416,-211.99583497,0.0003863,7]
[310223594,1704403844425,-500.0,0.0003863,7]
[310223596,1704403844435,-500.0,0.0003863,7]
[310223598,1704403844445,-500.0,0.0003863,7]
[310223600,1704403844454,-23122.23,0.0003863,7]
[310223602,1704403844463,-405.35562547,0.0003863,7]
[310223604,1704403844472,-500.0,0.0003863,7]
[310223606,1704403844481,-6129.7,0.0003863,7]
[310223608,1704403844490,-500.0,0.0003863,7]
[310223610,1704403844499,-500.0,0.0003863,7]
[310223612,1704403844508,-500.0,0.0003863,7]
[310223614,1704403844517,-603.41,0.0003863,7]
[310223616,1704403844526,-500.0,0.0003863,7]
[310223618,1704403844535,-1388.33,0.0003863,7]
[310223620,1704403844544,-500.0,0.0003863,7]
[310223622,1704403844553,-500.0,0.0003863,7]
[310223624,1704403844562,-500.0,0.0003863,7]
[310223626,1704403844572,-634.75,0.0003863,7]
[310223628,1704403844583,-617.62,0.0003863,7]
[310223629,1704403844592,-2149.26,0.0003863,7]
[310223631,1704403844601,-500.0,0.0003863,7]
[310223633,1704403844611,-500.0,0.0003863,7]
[310223635,1704403844620,-2932.15,0.0003863,7]
[310223637,1704403844629,-2164.45,0.0003863,7]
[310223639,1704403844638,-500.0,0.0003863,7]
[310223641,1704403844647,-500.0,0.0003863,7]
[310223643,1704403844656,-500.0,0.0003863,7]
[310223645,1704403844666,-500.0,0.0003863,7]
[310223647,1704403844675,-500.0,0.0003863,7]
[310223649,1704403844684,-500.0,0.0003863,7]
[310223651,1704403844695,-2032.27,0.0003863,7]
[310223653,1704403844703,-500.0,0.0003863,7]
[310223655,1704403844713,-841.33,0.0003863,7]
[310223657,1704403844722,-768.62,0.0003863,7]
[310223659,1704403844731,-500.0,0.0003863,7]
[310223661,1704403844740,-500.0,0.0003863,7]
[310223663,1704403844749,-3336.95,0.0003863,7]
[310223665,1704403844758,-500.0,0.0003863,7]
[310223667,1704403844768,-500.0,0.0003863,7]
[310223669,1704403844777,-500.0,0.0003863,7]
[310223671,1704403844786,-500.0,0.0003863,7]
[310223673,1704403844798,-500.0,0.0003863,7]
[310223675,1704403844807,-500.0,0.0003863,7]
[310223677,1704403844816,-608.97,0.0003863,7]
[310223679,1704403844825,-52.2032934,0.0003863,7]
[310223814,1704403846151,-222.33405859,0.00038356,7]
[310223816,1704403846160,-500.0,0.00038356,7]
[310223818,1704403846169,-176.14026718,0.0003863,7]
[310223820,1704403846179,-500.0,0.0003863,7]
[310223822,1704403846191,-500.0,0.0003863,2]
[310223824,1704403846201,-500.0,0.0003863,7]
[310223826,1704403846210,-500.0,0.0003863,7]
[310223828,1704403846219,-500.0,0.0003863,7]
[310223830,1704403846228,-500.0,0.0003863,7]
[310223832,1704403846238,-500.0,0.0003863,7]
[310223834,1704403846247,-500.0,0.0003863,7]
[310223835,1704403846256,-500.0,0.0003863,7]
[310223837,1704403846265,-500.0,0.0003863,7]
[310223839,1704403846274,-500.0,0.000387,7]
[310223842,1704403846283,-155.0,0.00038726,2]
[310223844,1704403846298,-536.0,0.0003874,2]
[310223847,1704403846312,-156.05371475,0.00038903,4]
[310223849,1704403846326,-500.0,0.00038904,7]
[310223851,1704403846337,-500.0,0.00038904,7]
[310223854,1704403846348,-500.0,0.00038904,7]
[310223856,1704403846361,-500.0,0.00038904,7]
[310223858,1704403846373,-500.0,0.00038904,7]
[310223859,1704403846386,-500.0,0.00038904,7]
[310223860,1704403846399,-558.49,0.00038904,7]
[310223861,1704403846411,-500.0,0.00038904,7]
[310223862,1704403846425,-531.16222425,0.00038904,7]
[310223863,1704403846435,-500.0,0.00038904,7]
[310223864,1704403846447,-500.0,0.00038904,7]
[310223865,1704403846459,-500.0,0.00038904,7]
[310223866,1704403846471,-500.0,0.00038904,7]
[310223868,1704403846482,-500.0,0.00038904,7]
[310223870,1704403846495,-500.0,0.00038904,7]
[310223872,1704403846507,-500.0,0.00038904,7]
[310223874,1704403846519,-500.0,0.00038904,7]
[310223876,1704403846531,-500.0,0.00038904,7]
[310223879,1704403846541,-500.0,0.00038904,7]
[310223881,1704403846555,-500.0,0.00038904,7]
[310223883,1704403846568,-576.98,0.00038904,7]
[310223886,1704403846580,-500.0,0.00038904,7]
[310223888,1704403846593,-500.0,0.00038904,7]
[310223890,1704403846605,-1233.61,0.00038904,7]
[310223893,1704403846617,-500.0,0.00038904,7]
[310223895,1704403846629,-517.5,0.00038904,7]
[310223897,1704403846642,-500.0,0.00038904,7]
[310223900,1704403846655,-500.0,0.00038904,7]
[310223902,1704403846668,-500.0,0.00038904,7]
[310223904,1704403846680,-500.0,0.00038904,7]
[310223907,1704403846695,-500.0,0.00038904,7]
[310223909,1704403846707,-617.08,0.00038904,7]
[310223911,1704403846718,-500.0,0.00038904,7]
[310223913,1704403846728,-540.83144984,0.00038904,7]
[310223916,1704403846739,-691.0,0.00038904,7]
[310223918,1704403846751,-500.0,0.00038904,7]
[310223920,1704403846763,-500.0,0.00038904,7]
[310223922,1704403846775,-500.0,0.00038904,7]
[310223925,1704403846787,-500.0,0.00038904,7]
[310223927,1704403846798,-500.0,0.00038904,7]
[310223929,1704403846809,-1564.77,0.00038904,2]
[310223931,1704403846820,-500.0,0.00038904,7]
[310223933,1704403846830,-552.88,0.00038904,7]
[310223935,1704403846840,-1532.91,0.00038904,7]
[310223938,1704403846851,-500.0,0.00038904,2]
[310223940,1704403846862,-208.26579805,0.00038904,7]
[310223942,1704403846875,-500.0,0.00038904,7]
[310223944,1704403846887,-657.4,0.00038904,7]
[310223946,1704403846897,-500.0,0.00038904,7]
[310223949,1704403846912,-500.0,0.00038904,7]
[310223951,1704403846924,-1000.0,0.00038904,2]
[310223953,1704403846935,-500.0,0.00038904,7]
[310223955,1704403846946,-500.0,0.00038904,7]
[310223957,1704403846956,-500.0,0.00038904,7]
[310223960,1704403846966,-500.0,0.00038904,7]
[310223962,1704403846977,-750.84,0.00038904,7]
[310223964,1704403846988,-520.0,0.00038904,7]
[310223966,1704403846998,-500.0,0.00038904,7]
[310223968,1704403847009,-500.0,0.00038904,7]
[310223970,1704403847020,-720.81,0.00038904,7]
[310223973,1704403847031,-1081.67,0.00038904,7]
[310223975,1704403847042,-500.0,0.00038904,7]
[310223977,1704403847052,-849.82,0.00038904,7]
[310223979,1704403847064,-1135.37,0.00038904,7]
[310223981,1704403847075,-3814.95,0.00038904,7]
[310223983,1704403847085,-500.0,0.00038904,7]
[310223986,1704403847096,-512.69,0.00038904,7]
[310223988,1704403847108,-500.0,0.00038904,7]
[310223990,1704403847119,-694.37,0.00038904,7]
[310223992,1704403847129,-748.22,0.00038904,7]
[310223994,1704403847140,-500.0,0.00038904,7]
[310223997,1704403847151,-500.0,0.00038904,7]
[310223999,1704403847161,-1373.82,0.00038904,7]
[310224001,1704403847173,-500.0,0.00038904,7]
[310224003,1704403847184,-500.0,0.00038904,7]
[310224005,1704403847196,-500.0,0.00038904,7]
[310224008,1704403847207,-500.0,0.00038904,7]
[310224010,1704403847217,-500.0,0.00038904,7]
[310224012,1704403847228,-1728.79,0.00038904,7]
[310224014,1704403847239,-500.0,0.00038904,7]
[310224016,1704403847251,-500.0,0.00038904,7]
[310224018,1704403847262,-500.0,0.00038904,7]
[310224020,1704403847271,-623.76,0.00038904,7]
[310224022,1704403847280,-500.0,0.00038904,2]
[310224024,1704403847291,-500.0,0.00038904,7]
[310224026,1704403847300,-500.0,0.00038904,7]
[310224029,1704403847310,-500.0,0.00038904,7]
[310224031,1704403847319,-1506.71,0.00038904,7]
[310224033,1704403847328,-440.20682695,0.00038904,7]
[310224035,1704403847336,-500.0,0.00038904,7]
[310224037,1704403847346,-1047.73,0.00038904,7]
[310224039,1704403847355,-500.0,0.00038904,7]
[310224041,1704403847364,-500.0,0.00038904,7]
[310224042,1704403847373,-500.0,0.00038904,7]
[310224044,1704403847382,-500.0,0.00038904,7]
[310224047,1704403847394,-562.02261142,0.00038904,7]
[310224049,1704403847403,-500.0,0.00038904,7]
[310224051,1704403847414,-500.0,0.00038904,7]
[310224053,1704403847423,-500.0,0.00038904,7]
[310224055,1704403847432,-500.0,0.00038904,7]
[310224057,1704403847442,-500.0,0.00038904,7]
[310224075,1704403847598,-500.0,0.00038904,7]
[310224077,1704403847611,-500.0,0.00038904,7]
[310224079,1704403847622,-500.0,0.00038904,7]
[310224082,1704403847632,-500.0,0.00038904,7]
[310224084,1704403847642,-500.0,0.00038904,7]
[310224085,1704403847651,-705.34,0.00038904,7]
[310224087,1704403847660,-500.0,0.00038904,7]
[310224089,1704403847669,-744.85,0.00038904,7]
[310224091,1704403847679,-9877.37,0.00038904,7]
[310224093,1704403847689,-500.0,0.00038904,7]
[310224096,1704403847698,-500.0,0.00038904,7]
[310224097,1704403847708,-500.0,0.00038904,7]
[310224099,1704403847717,-500.0,0.00038904,7]
[310224101,1704403847727,-500.0,0.00038904,7]
[310224103,1704403847737,-500.0,0.00038904,7]
[310224105,1704403847746,-15428.1,0.00038904,7]
[310224107,1704403847755,-1089.44,0.00038904,7]
[310224110,1704403847765,-319.57377231,0.00038904,7]
[310224112,1704403847775,-500.0,0.00038904,7]
[310224114,1704403847784,-1654.23,0.00038904,7]
[310224116,1704403847794,-500.0,0.00038904,7]
[310224118,1704403847803,-970.41,0.00038904,7]
[310224120,1704403847813,-1937.04,0.00038904,7]
[310224122,1704403847822,-752.89,0.00038904,7]
[310224124,1704403847831,-500.0,0.00038904,7]
[310224126,1704403847841,-500.0,0.00038904,7]
[310224128,1704403847850,-8841.35,0.00038904,7]
[310224130,1704403847858,-516.13624976,0.00038904,7]
[310224131,1704403847868,-2898.21,0.00038904,7]
[310224133,1704403847880,-500.0,0.00038904,7]
[310224135,1704403847889,-166.36146967,0.00038904,7]
[310224137,1704403847899,-500.0,0.00038904,7]
[310224139,1704403847908,-23122.23,0.00038904,7]
[310224141,1704403847917,-500.0,0.00038904,7]
[310224143,1704403847927,-6129.7,0.00038904,7]
[310224145,1704403847937,-500.0,0.00038904,7]
[310224147,1704403847947,-257.38950685,0.00038904,7]
[310224149,1704403847957,-500.0,0.00038904,7]
[310224151,1704403847966,-603.41,0.00038904,7]
[310224153,1704403847975,-500.0,0.00038904,7]
[310224156,1704403847986,-1388.33,0.00038904,7]
[310224157,1704403847996,-500.0,0.00038904,7]
[310224159,1704403848009,-437.78702758,0.00038904,7]
[310224161,1704403848018,-500.0,0.00038904,7]
[310224163,1704403848027,-634.75,0.00038904,7]
[310224165,1704403848036,-617.62,0.00038904,7]
[310224167,1704403848045,-2149.26,0.00038904,7]
[310224169,1704403848054,-575.43580268,0.00038904,7]
[310224171,1704403848063,-500.0,0.00038904,7]
[310224173,1704403848072,-2932.15,0.00038904,7]
[310224175,1704403848082,-2164.45,0.00038904,7]
[310224177,1704403848091,-539.01754546,0.00038904,7]
[310224179,1704403848100,-500.0,0.00038904,7]
[310224181,1704403848109,-500.0,0.00038904,7]
[310224183,1704403848118,-500.0,0.00038904,7]
[310224185,1704403848128,-500.0,0.00038904,7]
[310224187,1704403848137,-2032.27,0.00038904,7]
[310224189,1704403848147,-500.0,0.00038904,7]
[310224191,1704403848156,-841.33,0.00038904,7]
[310224193,1704403848165,-768.62,0.00038904,7]
[310224195,1704403848176,-500.0,0.00038904,7]
[310224197,1704403848186,-500.0,0.00038904,7]
[310224199,1704403848195,-3336.95,0.00038904,7]
[310224201,1704403848205,-508.96262716,0.00038904,7]
[310224203,1704403848214,-500.0,0.00038904,7]
[310224205,1704403848223,-500.0,0.00038904,7]
[310224207,1704403848232,-292.97453826,0.00038904,7]
[310224209,1704403848241,-500.0,0.00038904,7]
[310224211,1704403848250,-500.0,0.00038904,7]
[310224213,1704403848261,-608.97,0.00038904,7]
[310224215,1704403848270,-566.80669361,0.00038904,7]
[310224217,1704403848280,-500.0,0.00038904,2]
[310224219,1704403848289,-564.95404721,0.00038904,7]
[310224221,1704403848298,-500.0,0.00038904,7]
[310224223,1704403848307,-500.0,0.00038904,7]
[310224225,1704403848316,-500.0,0.00038904,7]
[310224227,1704403848326,-500.0,0.00038904,7]
[310224229,1704403848335,-500.0,0.00038904,7]
[310224231,1704403848344,-492.39349911,0.00038904,7]
[310224233,1704403848353,-154.73694719,0.00039,4]
[310224235,1704403848362,-150.0,0.00039148,60]
[310224237,1704403848372,-13850.0,0.00039148,60]
[310224239,1704403848381,-213.0,0.00039148,60]
[310224241,1704403848390,-285.0,0.00039148,60]
[310224243,1704403848400,-150.0,0.00039158,60]
[310224245,1704403848409,-13850.0,0.00039158,60]
[310224247,1704403848418,-213.0,0.00039158,60]
[310224249,1704403848427,-285.0,0.00039158,60]
[310224251,1704403848436,-13850.0,0.00039168,60]
[310224253,1704403848447,-213.0,0.00039168,60]
[310224255,1704403848456,-285.0,0.00039168,60]
[310224257,1704403848465,-259.17,0.0003917,60]
[310224259,1704403848475,-150.0,0.0003917,60]
[310224261,1704403848484,-537.34820803,0.00039178,7]
[310224263,1704403848494,-500.0,0.00039178,7]
[310224265,1704403848505,-500.0,0.00039178,7]
[310224267,1704403848514,-500.0,0.00039178,7]
[310224269,1704403848523,-208.11397138,0.00039178,7]
[310224271,1704403848532,-500.0,0.00039178,7]
[310224273,1704403848541,-558.49,0.00039178,7]
[310224275,1704403848550,-500.0,0.00039178,7]
[310224277,1704403848559,-500.0,0.00039178,7]
[310224279,1704403848568,-240.11809134,0.00039178,7]
[310224281,1704403848577,-500.0,0.00039178,7]
[310224283,1704403848586,-500.0,0.00039178,7]
[310224285,1704403848595,-500.0,0.00039178,7]
[310224287,1704403848604,-500.0,0.00039178,7]
[310224290,1704403848614,-500.0,0.00039178,7]
[310224292,1704403848625,-500.0,0.00039178,7]
[310224294,1704403848634,-500.0,0.00039178,7]
[310224296,1704403848643,-500.0,0.00039178,7]
[310224298,1704403848653,-500.0,0.00039178,7]
[310224300,1704403848662,-576.98,0.00039178,7]
[310224302,1704403848671,-500.0,0.00039178,7]
[310224304,1704403848681,-500.0,0.00039178,7]
[310224306,1704403848693,-1233.61,0.00039178,7]
[310224308,1704403848703,-500.0,0.00039178,7]
[310224310,1704403848713,-517.5,0.00039178,7]
[310224312,1704403848723,-500.0,0.00039178,7]
[310224314,1704403848733,-500.0,0.00039178,7]
[310224316,1704403848743,-500.0,0.00039178,7]
[310224318,1704403848753,-500.0,0.00039178,7]
[310224320,1704403848762,-617.08,0.00039178,7]
[310224322,1704403848771,-500.0,0.00039178,7]
[310224324,1704403848781,-691.0,0.00039178,7]
[310224326,1704403848790,-500.0,0.00039178,7]
[310224328,1704403848798,-500.0,0.00039178,7]
[310224330,1704403848809,-500.0,0.00039178,7]
[310224332,1704403848819,-500.0,0.00039178,7]
[310224334,1704403848828,-500.0,0.00039178,7]
[310224336,1704403848837,-1564.77,0.00039178,2]
[310224338,1704403848846,-500.0,0.00039178,7]
[310224340,1704403848856,-552.88,0.00039178,7]
[310224342,1704403848865,-1532.91,0.00039178,7]
[310224344,1704403848874,-500.0,0.00039178,2]
[310224346,1704403848884,-500.0,0.00039178,7]
[310224348,1704403848893,-657.4,0.00039178,7]
[310224350,1704403848903,-500.0,0.00039178,7]
[310224352,1704403848912,-500.0,0.00039178,7]
[310224354,1704403848922,-1000.0,0.00039178,2]
[310224356,1704403848931,-500.0,0.00039178,7]
[310224358,1704403848940,-500.0,0.00039178,7]
[310224360,1704403848950,-500.0,0.00039178,7]
[310224362,1704403848960,-500.0,0.00039178,7]
[310224364,1704403848969,-750.84,0.00039178,7]
[310224366,1704403848978,-520.0,0.00039178,7]
[310224368,1704403848987,-500.0,0.00039178,7]
[310224370,1704403848997,-500.0,0.00039178,7]
[310224372,1704403849006,-720.81,0.00039178,7]
[310224374,1704403849015,-1081.67,0.00039178,7]
[310224376,1704403849024,-500.0,0.00039178,7]
[310224378,1704403849033,-849.82,0.00039178,7]
[310224381,1704403849042,-1135.37,0.00039178,7]
[310224383,1704403849051,-3814.95,0.00039178,7]
[310224385,1704403849061,-500.0,0.00039178,7]
[310224387,1704403849070,-512.69,0.00039178,7]
[310224389,1704403849080,-150.30238206,0.00039178,7]
[310224391,1704403849090,-694.37,0.00039178,7]
[310224392,1704403849100,-748.22,0.00039178,7]
[310224395,1704403849109,-500.0,0.00039178,7]
[310224396,1704403849118,-500.0,0.00039178,7]
[310224398,1704403849127,-1373.82,0.00039178,7]
[310224400,1704403849137,-288.53733969,0.00039178,7]
[310224402,1704403849146,-500.0,0.00039178,7]
[310224404,1704403849155,-500.0,0.00039178,7]
[310224406,1704403849165,-500.0,0.00039178,7]
[310224409,1704403849175,-500.0,0.00039178,7]
[310224410,1704403849185,-1728.79,0.00039178,7]
[310224413,1704403849197,-500.0,0.00039178,7]
[310224415,1704403849206,-500.0,0.00039178,7]
[310224417,1704403849215,-623.76,0.00039178,7]
[310224418,1704403849224,-500.0,0.00039178,7]
[310224420,1704403849235,-500.0,0.00039178,2]
[310224422,1704403849245,-500.0,0.00039178,7]
[310224424,1704403849254,-500.0,0.00039178,7]
[310224426,1704403849263,-1506.71,0.00039178,7]
[310224428,1704403849272,-500.0,0.00039178,7]
[310224430,1704403849281,-1047.73,0.00039178,7]
[310224432,1704403849290,-588.47141533,0.00039178,7]
[310224434,1704403849299,-500.0,0.00039178,7]
[310224436,1704403849309,-500.0,0.00039178,7]
[310224438,1704403849318,-581.62094742,0.00039178,7]
[310224440,1704403849327,-500.0,0.00039178,7]
[310224442,1704403849337,-606.17498984,0.00039178,7]
[310224444,1704403849346,-500.0,0.00039178,7]
[310224446,1704403849357,-500.0,0.00039178,7]
[310224449,1704403849366,-500.0,0.00039178,7]
[310224451,1704403849377,-500.0,0.00039178,7]
[310224453,1704403849387,-500.0,0.00039178,7]
[310224454,1704403849396,-500.0,0.00039178,7]
[310224456,1704403849405,-705.34,0.00039178,7]
[310224458,1704403849414,-500.0,0.00039178,7]
[310224461,1704403849424,-744.85,0.00039178,7]
[310224463,1704403849434,-9877.37,0.00039178,7]